bitfinex-derivatives/quotes_SOLF0:USTF0_20260204
["timestamp","ask_amount","ask_price","bid_price","bid_amount"]
[1770241728653,0.06925378,91.113,91.044,9.9071]
[1770241729153,5.7350284,91.128,91.058,9.9055]
[1770241729661,7.49414701,91.17,90.96,462.7586]
[1770241729662,5.7350284,91.122,91.043,9.9071]
[1770241730561,5.92910092,91.12,91.02,7.49414701]
[1770241731263,5.92910092,91.12,91.032,9.9084]
[1770241731659,5.92910092,91.102,91.02,7.49414701]
[1770241732855,15.93824801,91.098,91.02,17.40384701]
[1770241733060,6.03694801,91.097,91.02,17.40384701]
[1770241733559,6.03694801,91.097,91.035,9.9081]
[1770241734355,6.03694801,91.097,91.024,9.9093]
[1770241734555,6.03694801,91.097,91.0,7.49414701]
[1770241735158,153.9498,91.14,91.009,9.9109]
[1770241735159,6.04709679,91.084,91.009,9.9109]
[1770241737364,6.06210383,91.072,91.009,9.9109]
[1770241737766,6.06210383,91.072,90.97,7.49414701]
[1770241737969,6.04092437,91.069,90.97,7.49414701]
[1770241738158,6.04092437,91.069,90.948,1.91191983]
[1770241738359,6.04092437,91.069,90.979,9.9142]
[1770241738360,9.9058,91.057,90.979,9.9142]
[1770241738665,6.04092437,91.056,90.932,154.301]
[1770241738963,6.04092437,91.056,90.938,1.91205639]
[1770241739165,6.04094436,91.039,90.87,154.4052]
[1770241739358,6.04094436,91.039,90.858,154.4261]
[1770241739359,6.04094436,91.019,90.882,154.3855]
[1770241739558,6.04094436,91.019,90.92,7.49414701]
[1770241740066,6.26680929,91.069,90.95,7.49414701]
[1770241740257,6.26680929,91.069,90.97,7.49414701]
[1770241740760,6.26680929,91.069,90.889,154.3742]
[1770241740761,6.26680929,91.069,90.93,7.49414701]
[1770241740963,6.26680929,91.049,90.93,7.49414701]
[1770241741162,6.26680929,91.049,90.902,154.3519]
[1770241741368,6.26680929,91.049,90.899,154.3573]
[1770241741565,6.26680929,91.049,90.93,7.49414701]
[1770241741765,6.26680929,91.049,90.95,7.49414701]
[1770241742067,6.26680929,91.049,90.888,1.91324953]
[1770241742068,6.13955435,91.075,90.99,7.49414701]
[1770241742268,6.13955435,91.075,90.96,7.49414701]
[1770241742470,7.49414701,91.07,90.96,7.49414701]
[1770241742666,6.13955435,91.052,90.935,9.919]
[1770241742872,6.13955435,91.049,90.94,7.49414701]
[1770241743363,6.13955435,91.049,90.96,7.49414701]
[1770241743764,6.13955435,91.049,90.98,7.49414701]
[1770241744071,6.13955435,91.073,90.98,7.49414701]
[1770241744565,6.13955435,91.073,90.9,154.3549]
[1770241744566,6.13955435,91.073,91.0,7.49414701]
[1770241744771,6.08596386,91.102,91.02,7.49414701]
[1770241746873,6.08596386,91.102,91.023,9.9094]
[1770241747064,6.08596386,91.102,91.01,7.49414701]
[1770241748367,15.98676386,91.102,91.011,9.9106]
[1770241748763,6.4566603,91.101,91.011,9.9106]
[1770241749368,6.4566603,91.101,90.964,154.2459]
[1770241749369,6.4566603,91.101,91.03,7.49414701]
[1770241750675,6.46024533,91.122,91.05,7.49414701]
[1770241751068,9.8989,91.12,91.05,7.49414701]
[1770241751467,6.46024533,91.119,91.03,7.49414701]
[1770241751673,7.49414701,91.15,90.955,154.261]
[1770241751674,9.9021,91.091,91.01,7.49414701]
[1770241751868,9.9021,91.091,91.014,9.9104]
[1770241752069,6.44036774,91.09,90.98,7.49414701]
[1770241752275,6.44036774,91.056,90.98,7.49414701]
[1770241752467,6.44036774,91.056,90.97,7.53950181]
[1770241753169,6.44036774,91.056,90.939,32.76]
[1770241753170,6.44036774,91.056,90.99,7.53950181]
[1770241753571,16.34366774,91.08,90.99,7.53950181]
[1770241753876,16.34366774,91.08,91.02,9.9097]
[1770241753877,6.44036774,91.08,91.02,9.9097]
[1770241754078,6.44036774,91.08,91.01,7.53950181]
[1770241754470,6.44036774,91.08,90.99,7.53950181]
[1770241754672,6.44036774,91.08,90.97,7.53950181]
[1770241755076,6.44036774,91.08,90.982,9.9138]
[1770241755576,6.32998556,91.062,90.982,9.9138]
[1770241755767,6.32998556,91.062,90.991,9.9128]
[1770241755970,6.32998556,91.062,90.99,7.53950181]
[1770241756170,6.32998556,91.062,91.01,9.9108]
[1770241756567,6.32329908,91.083,90.99,7.53950181]
[1770241756767,6.32329908,91.083,90.96,7.53950181]
[1770241756768,6.32329908,91.102,91.039,9.9076]
[1770241756970,6.32329908,91.102,91.01,7.53950181]
[1770241757175,6.32329908,91.102,90.99,7.53950181]
[1770241757376,6.32329908,91.081,90.99,7.53950181]
[1770241757576,6.32329908,91.081,90.96,7.53950181]
[1770241757577,6.32329908,91.081,91.01,7.53950181]
[1770241757977,6.32329908,91.081,91.035,9.9081]
[1770241758178,6.32329908,91.081,91.01,7.53950181]
[1770241758574,6.32329908,91.081,91.036,9.9079]
[1770241758980,6.3473089,91.1,91.036,9.9079]
[1770241759377,6.3473089,91.1,90.974,154.2294]
[1770241759378,6.3473089,91.1,91.045,9.9069]
[1770241761182,6.21850312,91.127,91.055,9.9059]
[1770241762180,6.21850312,91.127,91.05,7.53950181]
[1770241762181,6.21850312,91.127,91.064,9.9049]
[1770241762582,6.21850312,91.127,91.073,9.9039]
[1770241762989,6.21850312,91.127,91.02,7.53950181]
[1770241763381,6.18934084,91.107,91.038,9.9077]
[1770241764187,9.9004,91.106,91.046,9.9068]
[1770241764381,6.14669094,91.105,91.046,9.9068]
[1770241764690,6.14669094,91.105,91.037,9.9079]
[1770241765000,6.14669094,91.105,91.02,7.53950181]
[1770241765287,6.14669094,91.103,91.035,9.908]
[1770241766391,9.902,91.092,91.035,9.908]
[1770241766598,9.902,91.092,91.0,7.53950181]
[1770241766599,6.14669094,91.103,91.045,9.907]
[1770241766895,16.04739094,91.103,91.045,9.907]
[1770241768493,9.9018,91.093,91.035,9.9081]
[1770241768693,6.04209824,91.092,91.035,9.9081]
[1770241769596,6.04209824,91.089,91.009,9.9109]
[1770241769996,6.01615643,91.058,90.947,19.8354]
[1770241770392,6.01615643,91.058,90.996,9.9123]
[1770241770599,6.01615643,91.049,90.947,19.8354]
[1770241770791,6.01615643,91.049,90.94,7.53950181]
[1770241770997,154.0265,91.095,90.919,19.8415]
[1770241770998,6.01615643,91.029,90.958,9.9164]
[1770241771195,6.01615643,91.029,90.884,154.3828]
[1770241771196,6.01615643,91.029,90.91,7.53950181]
[1770241771792,6.01615643,91.028,90.955,9.9168]
[1770241771996,6.01615643,91.028,90.91,7.53950181]
[1770241772394,6.01615643,91.028,90.85,154.4399]
[1770241772395,6.00425042,90.989,90.878,1.91320219]
[1770241772592,6.00425042,90.989,90.836,9.91997469]
[1770241772798,6.00425042,90.92,90.824,9.91997469]
[1770241772992,6.00425042,90.92,90.8,7.53950181]
[1770241773198,6.00425042,90.92,90.82,7.53950181]
[1770241773398,6.00425042,90.92,90.844,9.9289]
[1770241773594,6.00425042,90.92,90.8,7.53950181]
[1770241773595,6.00425042,90.92,90.85,7.53950181]
[1770241774198,6.05563339,90.952,90.817,154.4968]
[1770241774401,6.05563339,90.952,90.85,7.53950181]
[1770241774598,6.05563339,90.952,90.789,154.5438]
[1770241774906,6.05563339,90.952,90.83,7.53950181]
[1770241775102,6.05563339,90.934,90.837,9.9297]
[1770241775400,6.05563339,90.934,90.84,7.53950181]
[1770241775600,6.05563339,90.934,90.82,7.53950181]
[1770241775802,6.05563339,90.909,90.79,7.53950181]
[1770241776003,6.11293071,90.889,90.76,7.53950181]
[1770241776406,6.11293071,90.875,90.76,7.53950181]
[1770241777004,6.11293071,90.939,90.81,7.53950181]
[1770241777303,154.2805,90.942,90.738,1.91627318]
[1770241777304,6.11293071,90.919,90.79,7.53950181]
[1770241777509,6.11293071,90.86,90.766,9.9371]
[1770241778205,6.07657716,90.842,90.752,9.939]
[1770241778602,6.07657716,90.842,90.75,7.53950181]
[1770241778809,6.07657716,90.842,90.732,154.6403]
[1770241779006,154.2975,90.935,90.732,154.6403]
[1770241779007,6.07657716,90.899,90.78,7.53950181]
[1770241779204,6.07657716,90.899,90.77,7.53950181]
[1770241779601,6.07657716,90.878,90.77,7.53950181]
[1770241779808,6.07657716,90.878,90.79,7.53950181]
[1770241780401,6.07657716,90.878,90.814,9.9321]
[1770241780910,154.2337,90.972,90.79,7.53950181]
[1770241780911,5.84914681,90.919,90.842,9.9291]
[1770241781503,5.84914681,90.919,90.856,9.9276]
[1770241781704,5.84914681,90.919,90.83,7.53950181]
[1770241782206,5.84914681,90.919,90.84,9.9293]
[1770241782607,9.921,90.917,90.823,9.9312]
[1770241782908,5.82535322,90.916,90.823,9.9312]
[1770241783307,5.82535322,90.911,90.823,9.9312]
[1770241783608,5.82535322,90.911,90.807,9.9329]
[1770241784410,6.28963383,90.906,90.807,9.9329]
[1770241784606,6.28963383,90.899,90.794,9.9344]
[1770241784806,6.28963383,90.881,90.794,9.9344]
[1770241785007,6.28963383,90.881,90.77,7.53950181]
[1770241785213,6.28963383,90.881,90.79,7.53950181]
[1770241785712,6.28963383,90.881,90.808,9.9328]
[1770241786909,6.28963383,90.881,90.795,9.9343]
[1770241787113,6.3650059,90.864,90.76,7.53950181]
[1770241787506,6.3650059,90.864,90.764,9.9377]
[1770241787910,154.3175,90.923,90.702,19.8889]
[1770241787911,6.3650059,90.862,90.793,9.9345]
[1770241788313,6.3650059,90.862,90.76,7.53950181]
[1770241788507,6.3650059,90.862,90.779,9.936]
[1770241788713,6.3650059,90.862,90.76,7.53950181]
[1770241789212,6.3650059,90.862,90.726,154.6506]
[1770241789213,6.3650059,90.862,90.79,7.53950181]
[1770241789807,6.3650059,90.862,90.79,17.47430181]
[1770241790512,6.3650059,90.862,90.79,7.53950181]
[1770241791908,6.15963496,90.884,90.79,7.53950181]
[1770241792308,6.15963496,90.884,90.756,154.6001]
[1770241792309,6.15963496,90.884,90.81,7.53950181]
[1770241792516,6.14426025,90.906,90.83,7.53950181]
[1770241792710,6.14426025,90.906,90.765,154.5837]
[1770241792711,6.14426025,90.956,90.876,9.9254]
[1770241792916,6.14426025,90.956,90.819,154.4931]
[1770241793113,6.14426025,90.956,90.87,7.53950181]
[1770241793416,6.14426025,90.951,90.871,9.926]
[1770241793910,7.53950181,90.99,90.871,9.926]
[1770241793911,6.1493824,90.95,90.871,9.926]
[1770241794116,6.1493824,90.949,90.828,9.9307]
[1770241794314,6.1493824,90.909,90.79,7.53950181]
[1770241794515,6.1493824,90.891,90.77,7.53950181]
[1770241794915,6.1493824,90.891,90.787,9.9351]
[1770241795113,6.1493824,90.875,90.787,9.9351]
[1770241795309,6.1493824,90.875,90.774,9.9366]
[1770241795712,6.1493824,90.868,90.75,7.53950181]
[1770241796010,6.1493824,90.868,90.77,7.53950181]
[1770241796211,6.19914602,90.854,90.701,19.889]
[1770241796416,6.19914602,90.854,90.73,7.53950181]
[1770241796818,6.19914602,90.854,90.758,9.9383]
[1770241797019,6.19914602,90.841,90.758,9.9383]
[1770241797616,6.19914602,90.837,90.758,9.9383]
[1770241798018,6.14251093,90.863,90.77,7.53950181]
[1770241798312,6.14251093,90.863,90.704,154.6882]
[1770241798517,6.14251093,90.863,90.74,7.53950181]
[1770241798718,6.14251093,90.85,90.74,7.53950181]
[1770241799317,6.14251093,90.85,90.76,7.53950181]
[1770241800622,6.08015914,90.873,90.803,9.9333]
[1770241800921,6.08015914,90.873,90.8,7.53950181]
[1770241801118,6.08015914,90.928,90.8,7.53950181]
[1770241801418,6.08015914,90.928,90.666,9.97524793]
[1770241801419,6.08015914,90.949,90.84,7.53950181]
[1770241801617,6.08015914,90.949,90.86,7.53950181]
[1770241801816,6.08015914,90.944,90.85,7.53950181]
[1770241802016,6.08015914,90.996,90.87,7.53950181]
[1770241803022,6.08766172,90.962,90.89,7.53950181]
[1770241803226,6.08766172,90.989,90.89,7.53950181]
[1770241803821,6.08766172,90.936,90.813,154.5031]
[1770241804125,6.08766172,90.936,90.83,7.53950181]
[1770241804422,19.8271,90.986,90.795,154.534]
[1770241804423,6.17867521,90.934,90.86,9.9272]
[1770241804625,6.17867521,90.934,90.824,154.4848]
[1770241805119,6.17867521,90.934,90.872,9.9259]
[1770241805320,6.17867521,90.934,90.805,154.5163]
[1770241805321,6.17867521,90.934,90.82,30.3919975]
[1770241805525,6.17867521,90.906,90.83,9.9304]
[1770241805826,6.17867521,90.906,90.763,19.8755]
[1770241806024,6.10267575,90.876,90.8,9.9337]
[1770241806525,6.10267575,90.875,90.805,9.9332]
[1770241806820,6.10267575,90.875,90.732,19.8824]
[1770241807730,6.10267575,90.875,90.777,9.9362]
[1770241807731,9.9283,90.851,90.777,9.9362]
[1770241807921,6.10267575,90.85,90.73,30.3919975]
[1770241808620,15.91398264,90.834,90.766,9.9375]
[1770241808821,5.98388264,90.833,90.766,9.9375]
[1770241809725,5.98388264,90.833,90.778,9.9361]
[1770241810229,9.9277,90.856,90.789,9.9349]
[1770241810727,9.9277,90.856,90.716,154.6682]
[1770241810728,5.97625071,90.891,90.819,9.9317]
[1770241810920,5.97625071,90.891,90.76,30.3919975]
[1770241811120,5.97625071,90.891,90.765,154.5838]
[1770241811326,5.97625071,90.891,90.778,154.5616]
[1770241811521,19.8262,90.99,90.821,1.98005108]
[1770241811926,9.918,90.945,90.871,9.926]
[1770241812131,434.36567073,90.997,90.85,1.98005108]
[1770241812629,9.9164,90.959,90.883,9.9246]
[1770241812831,434.36567073,90.997,90.861,1.91800233]
[1770241813319,9.9135,90.986,90.861,1.91800233]
[1770241813520,3.93111048,90.985,90.861,1.91800233]
[1770241813726,3.93111048,90.985,90.86,20.25021079]
[1770241813727,3.93111048,90.985,90.922,9.9204]
[1770241814528,3.93111048,90.985,90.894,1.91800233]
[1770241815126,3.93111048,90.977,90.867,1.8762431]
[1770241816131,9.9163,90.96,90.891,9.9238]
[1770241817229,9.9166,90.957,90.877,9.9253]
[1770241817427,3.93111048,90.956,90.877,9.9253]
[1770241817928,3.93111048,90.943,90.842,1.81323045]
[1770241818322,3.93111048,90.943,90.9,9.9227]
[1770241818532,20.25021079,91.02,90.9,9.9227]
[1770241818533,3.93111048,90.978,90.9,9.9227]
[1770241818731,3.93111048,90.978,90.869,1.80921438]
[1770241819430,3.93111048,90.949,90.869,1.80921438]
[1770241820132,3.93111048,90.949,90.821,1.91599171]
[1770241820527,3.93111048,90.933,90.863,9.9268]
[1770241822040,3.93111048,90.959,90.863,1.91599171]
[1770241822435,3.93111048,90.959,90.895,9.9233]
[1770241823531,3.93111048,90.982,90.905,9.9222]
[1770241823937,3.93111048,90.982,90.887,1.91743009]
[1770241824443,428.56532403,91.031,90.887,1.91743009]
[1770241824444,3.66595399,90.979,90.887,1.91743009]
[1770241824644,3.66595399,90.979,90.86,1.94312947]
[1770241824940,3.66595399,90.979,90.821,1.94312947]
[1770241825135,3.66595399,90.927,90.857,9.9275]
[1770241826036,9.9204,90.922,90.847,9.9286]
[1770241826437,3.66595399,90.921,90.821,1.94312947]
[1770241827337,9.9219,90.909,90.821,1.94312947]
[1770241827543,3.66595399,90.908,90.821,1.94312947]
[1770241828042,9.9233,90.896,90.821,1.94312947]
[1770241828238,3.66595399,90.908,90.798,1.78176492]
[1770241828644,3.66595399,90.883,90.809,9.9328]
[1770241828835,3.66595399,90.883,90.798,1.78176492]
[1770241829237,3.66595399,90.883,90.781,9.9358]
[1770241829438,3.66595399,90.883,90.773,1.78176492]
[1770241829639,9.9252,90.879,90.81,9.9326]
[1770241829836,13.59115399,90.879,90.81,9.9326]
[1770241830035,3.66595399,90.878,90.81,9.9326]
[1770241830242,9.9239,90.89,90.821,9.9314]
[1770241830450,9.9239,90.89,90.798,1.78056505]
[1770241831048,9.9239,90.89,90.83,9.9305]
[1770241831242,9.9239,90.89,90.798,1.78056505]
[1770241831243,13.58985399,90.89,90.798,1.78056505]
[1770241831451,3.66595399,90.89,90.798,1.78056505]
[1770241831753,3.66595399,90.89,90.81,9.9326]
[1770241832052,3.66595399,90.883,90.81,9.9326]
[1770241832951,9.925,90.881,90.812,9.9319]
[1770241833346,9.925,90.881,90.798,1.78056505]
[1770241833542,13.59095399,90.881,90.798,1.78056505]
[1770241833944,3.66595399,90.91,90.831,1.8012006]
[1770241834652,3.66595399,90.91,90.85,9.9283]
[1770241835551,3.66595399,90.91,90.831,1.8012006]
[1770241836153,3.66595399,90.91,90.862,9.9269]
[1770241836754,9.9206,90.921,90.862,9.9269]
[1770241837145,7.56171639,90.98,90.807,154.5137]
[1770241837146,7.89536194,90.979,90.871,2.08339113]
[1770241837652,7.89536194,90.979,90.873,9.9258]
[1770241837858,9.9196,90.93,90.85,7.56171639]
[1770241838054,7.89536194,90.937,90.85,7.56171639]
[1770241838253,7.89536194,90.937,90.879,9.9251]
[1770241838454,9.9189,90.936,90.85,7.56171639]
[1770241838857,7.56171639,90.97,90.811,19.865]
[1770241838858,7.87519998,90.935,90.83,7.56171639]
[1770241839153,9.9194,90.932,90.83,7.56171639]
[1770241839355,7.87519998,90.935,90.83,7.56171639]
[1770241839857,7.87519998,90.935,90.877,9.9253]
[1770241841953,7.87519998,90.935,90.85,7.56171639]
[1770241842459,7.87519998,90.935,90.875,9.9255]
[1770241842756,7.87519998,90.935,90.85,7.56171639]
[1770241842951,7.89862813,90.989,90.87,7.56171639]
[1770241843758,19.8203,91.017,90.843,154.4516]
[1770241843759,7.89862813,90.979,90.89,7.56171639]
[1770241843961,7.89862813,90.979,90.87,7.56171639]
[1770241844256,9.9193,90.933,90.871,9.9259]
[1770241845157,17.81199336,90.942,90.85,7.56171639]
[1770241845756,7.89369336,90.939,90.877,9.9253]
[1770241846856,9.9188,90.938,90.877,9.9253]
[1770241847060,7.56171639,90.98,90.85,7.56171639]
[1770241847061,7.86241961,90.937,90.85,7.56171639]
[1770241847259,7.86241961,90.937,90.815,19.8641]
[1770241847260,7.86241961,90.937,90.84,7.56171639]
[1770241847458,7.86241961,90.919,90.84,7.56171639]
[1770241848562,154.1855,91.001,90.816,154.4975]
[1770241848563,7.88173728,90.942,90.889,9.9239]
[1770241849864,9.9184,90.941,90.88,9.9249]
[1770241850165,17.59419162,90.941,90.88,9.9249]
[1770241850360,17.59419162,90.941,90.888,9.9241]
[1770241850564,7.67579162,90.941,90.86,7.56171639]
[1770241850957,7.67579162,90.941,90.884,9.9245]
[1770241851768,9.9185,90.94,90.884,9.9245]
[1770241854064,7.67579162,90.941,90.893,9.9235]
[1770241854460,7.67579162,90.941,90.86,7.56171639]
[1770241854868,9.9186,90.939,90.884,9.9245]
[1770241855266,19.8255,90.993,90.86,7.56171639]
[1770241855568,7.67579354,90.962,90.88,7.56171639]
[1770241856167,7.67579354,90.962,90.862,19.8539]
[1770241856768,9.9179,90.946,90.897,9.9231]
[1770241857163,7.67579354,90.962,90.86,7.56171639]
[1770241858366,7.60340877,90.948,90.86,7.56171639]
[1770241860372,7.60340877,90.948,90.849,9.97524793]
[1770241860674,7.60340877,90.948,90.87,7.56171639]
[1770241860969,7.60340877,90.948,90.81,7.56171639]
[1770241861370,7.59909017,90.906,90.841,9.9292]
[1770241861767,7.59909017,90.906,90.86,9.9267]
[1770241861972,9.9206,90.917,90.86,9.9267]
[1770241862171,7.59909017,90.926,90.83,7.56171639]
[1770241862376,7.51765052,90.925,90.858,9.9269]
[1770241862575,7.51765052,90.925,90.83,7.56171639]
[1770241862971,7.51765052,90.925,90.85,7.56171639]
[1770241863173,7.51765052,90.945,90.85,7.56171639]
[1770241863781,9.9208,90.919,90.864,9.9268]
[1770241864073,7.51765052,90.918,90.81,7.56171639]
[1770241864579,7.56171639,90.95,90.797,9.97524793]
[1770241864580,7.52703386,90.898,90.797,9.97524793]
[1770241864778,7.52703386,90.898,90.81,7.56171639]
[1770241864979,7.52703386,90.897,90.81,7.56171639]
[1770241865372,7.52703386,90.897,90.773,19.8733]
[1770241865373,7.52703386,90.889,90.812,9.9324]
[1770241865574,7.52703386,90.889,90.79,7.56171639]
[1770241866074,7.41881825,90.886,90.77,7.56171639]
[1770241866678,7.41881825,90.879,90.809,9.9327]
[1770241866880,7.41881825,90.879,90.77,7.56171639]
[1770241867676,9.9267,90.865,90.797,9.934]
[1770241867881,7.41881825,90.865,90.77,7.56171639]
[1770241868278,7.43459007,90.891,90.81,7.56171639]
[1770241868574,7.43459007,90.891,90.739,154.6286]
[1770241868575,7.56171639,90.89,90.77,7.56171639]
[1770241868775,7.43459007,90.889,90.77,7.56171639]
[1770241868983,7.43459007,90.889,90.79,7.56171639]
[1770241869681,7.43459007,90.875,90.79,7.56171639]
[1770241869882,7.43459007,90.875,90.745,9.97524793]
[1770241870082,7.43459007,90.875,90.77,7.56171639]
[1770241870784,17.36649152,90.859,90.792,9.9345]
[1770241870982,7.43909152,90.858,90.792,9.9345]
[1770241871884,7.43909152,90.858,90.805,9.9332]
[1770241872084,161.81611639,90.96,90.748,19.8787]
[1770241872085,7.42891701,90.88,90.79,7.56171639]
[1770241872784,7.42891701,90.875,90.755,9.97524793]
[1770241872985,7.42891701,90.875,90.78,7.56171639]
[1770241874180,7.43959338,90.874,90.812,9.9324]
[1770241874484,7.43959338,90.874,90.79,7.56869141]
[1770241874881,17.36599338,90.867,90.8,9.9337]
[1770241875079,7.43959338,90.866,90.8,9.9337]
[1770241875274,7.43959338,90.866,90.79,7.56869141]
[1770241875482,7.43959338,90.866,90.809,9.9327]
[1770241875885,9.9247,90.884,90.79,7.56869141]
[1770241876079,9.9247,90.884,90.81,7.56869141]
[1770241876684,9.9247,90.884,90.829,9.9306]
[1770241877086,7.49925614,90.958,90.83,7.56869141]
[1770241877385,7.49925614,90.958,90.85,7.56869141]
[1770241877588,9.919,90.935,90.872,9.9259]
[1770241877785,7.49925614,90.934,90.872,9.9259]
[1770241877986,7.49925614,90.934,90.85,7.56869141]
[1770241879181,7.49925614,90.934,90.877,9.9253]
[1770241879385,7.49925614,90.934,90.85,7.56869141]
[1770241879788,9.9201,90.925,90.85,7.56869141]
[1770241879983,7.49925614,90.934,90.85,7.56869141]
[1770241881591,17.41835614,90.934,90.875,9.9255]
[1770241881991,7.49925614,90.934,90.887,9.9242]
[1770241882392,7.49925614,90.934,90.86,7.56869141]
[1770241883391,9.9194,90.931,90.866,9.9265]
[1770241883892,7.49925614,90.934,90.884,9.9245]
[1770241885896,7.55524171,90.953,90.893,9.9235]
[1770241886597,7.55524171,90.953,90.902,9.9226]
[1770241886800,7.55524171,90.953,90.88,7.56869141]
[1770241887497,7.55524171,90.953,90.909,9.9218]
[1770241889091,7.56066097,90.975,90.9,7.56869141]
[1770241890297,7.56066097,90.975,90.912,9.9214]
[1770241891193,7.56066097,90.975,90.921,9.9205]
[1770241893307,7.56066097,90.975,90.859,154.425]
[1770241893308,7.56033307,90.996,90.92,7.56869141]
[1770241893799,7.56033307,90.993,90.92,7.56869141]
[1770241893995,7.56033307,90.993,90.89,19.8477]
[1770241893996,7.56033307,90.993,90.9,7.56869141]
[1770241894903,7.56033307,90.993,90.92,7.56869141]
[1770241896203,9.9106,91.013,90.957,9.9166]
[1770241896506,7.58794823,91.03,90.94,7.56869141]
[1770241897802,7.58794823,91.021,90.94,7.56869141]
[1770241898507,7.58794823,91.021,90.972,9.915]
[1770241898701,7.58794823,91.021,90.96,7.56869141]
[1770241899303,7.5868585,91.039,90.989,9.9131]
[1770241900205,7.56288877,91.037,90.94,7.56869141]
[1770241901405,9.9099,91.019,90.972,9.915]
[1770241902307,9.9099,91.019,90.94,7.56869141]
[1770241902308,7.61126185,91.031,90.98,9.9141]
[1770241902706,7.61126185,91.031,90.96,7.56869141]
[1770241902903,9.9074,91.042,90.989,9.9131]
[1770241903109,7.61126185,91.049,90.96,7.56869141]
[1770241903505,9.9087,91.03,90.976,9.9145]
[1770241903701,17.51996185,91.03,90.96,7.56869141]
[1770241903902,7.61126185,91.03,90.96,7.56869141]
[1770241904207,7.60907898,91.047,90.993,9.9127]
[1770241904712,7.60907898,91.047,91.001,9.9118]
[1770241904911,7.60907898,91.047,90.96,7.56869141]
[1770241905406,7.60907898,91.047,90.999,9.912]
[1770241905607,7.60907898,91.072,90.98,7.56869141]
[1770241905809,7.60907898,91.072,91.0,7.56869141]
[1770241906212,7.60907898,91.072,91.019,9.9098]
[1770241906608,7.60907898,91.072,90.98,7.56869141]
[1770241907208,7.59091183,91.069,91.009,9.9109]
[1770241907603,153.9685,91.129,90.95,154.2693]
[1770241907604,7.59091183,91.104,91.0,7.56869141]
[1770241907803,7.59091183,91.087,91.021,9.9096]
[1770241908009,7.59091183,91.087,90.98,7.56869141]
[1770241908509,7.61660515,91.072,90.98,7.56869141]
[1770241908913,7.61660515,91.072,90.96,7.56869141]
[1770241909409,7.61660515,91.05,90.96,7.56869141]
[1770241910807,7.6008319,91.045,90.984,9.9136]
[1770241911407,9.9083,91.033,90.975,9.9146]
[1770241911914,7.6008319,91.045,90.96,7.56869141]
[1770241912709,9.9074,91.042,90.984,9.9136]
[1770241912909,7.56405137,91.041,90.984,9.9136]
[1770241913519,7.56405137,91.041,90.992,9.9127]
[1770241914622,7.56935074,91.079,91.0,7.56869141]
[1770241914819,7.56935074,91.079,90.963,154.2473]
[1770241915015,7.56935074,91.079,91.0,7.56869141]
[1770241916926,7.54927001,91.069,91.016,9.9101]
[1770241917521,153.9566,91.136,90.933,154.2993]
[1770241917522,7.54927001,91.066,90.964,19.8316]
[1770241917913,7.54927001,91.036,90.985,9.9135]
[1770241918119,7.54927001,91.036,90.895,9.97524793]
[1770241918316,7.54927001,91.036,90.92,7.56869141]
[1770241918521,7.54927001,91.036,90.94,7.56869141]
[1770241918717,7.54927001,91.036,90.922,154.3178]
[1770241918924,7.54927001,91.036,90.96,7.56869141]
[1770241920623,9.907,91.046,90.96,7.56869141]
[1770241921522,9.907,91.046,90.994,9.9125]
[1770241922823,7.58470327,91.054,91.002,9.9116]
[1770241925426,7.58470327,91.054,90.951,19.8344]
[1770241925726,7.56869141,91.12,90.9,7.56869141]
[1770241925727,7.58521436,91.029,90.9,7.56869141]
[1770241926027,7.58521436,91.001,90.938,9.9187]
[1770241926624,9.9121,90.999,90.938,9.9187]
[1770241926824,7.57719132,90.998,90.938,9.9187]
[1770241927723,7.57719132,90.998,90.92,7.56869141]
[1770241927922,7.613951,91.069,90.94,7.56869141]
[1770241928527,7.613951,91.069,90.912,154.335]
[1770241928724,7.613951,91.028,90.966,9.9155]
[1770241929231,7.613951,91.028,90.93,7.56869141]
[1770241929525,7.613951,91.046,90.95,7.56869141]
[1770241930429,7.56463469,91.044,90.95,7.56869141]
[1770241930728,7.56463469,91.044,90.925,19.8402]
[1770241930729,7.56463469,91.044,90.93,7.56869141]
[1770241931028,7.56463469,91.023,90.962,9.9161]
[1770241931228,7.56463469,91.023,90.93,7.56869141]
[1770241931229,7.56463469,91.023,90.912,2.74085279]
[1770241931934,163.77271939,91.07,90.884,9.97524793]
[1770241931935,3.87335151,91.013,90.931,2.74085279]
[1770241932133,3.87335151,91.069,90.931,2.74085279]
[1770241932328,3.87335151,91.069,90.951,2.77143677]
[1770241932526,3.87335151,91.034,90.951,2.77143677]
[1770241932730,3.87335151,91.034,90.922,2.77143677]
[1770241933433,3.87335151,91.016,90.953,9.917]
[1770241933632,3.87335151,91.016,90.922,2.77143677]